bitfinex/quotes_SOLUSD_20250420
["timestamp","ask_amount","ask_price","bid_price","bid_amount"]
[1745162099734,0.063,136.96,136.95,282.92964886]
[1745162100359,0.063,136.96,136.95,293.80648866]
[1745162113371,0.063,136.96,136.95,319.80648866]
[1745162119679,0.063,136.96,136.95,293.80648866]
[1745162119877,0.06299999,136.96,136.95,295.33038866]
[1745162120075,0.063,136.97,136.96,19.64964886]
[1745162120288,0.063,136.97,136.96,75.49319273]
[1745162122687,0.063,136.97,136.96,74.49319273]
[1745162122878,0.063,136.97,136.96,75.49319273]
[1745162124601,0.063,136.98,136.97,19.64964886]
[1745162124802,0.063,137.0,136.97,19.64964886]
[1745162124803,0.063,137.0,136.99,19.64964886]
[1745162124980,0.063,137.0,136.99,30.52648866]
[1745162125305,0.063,137.0,136.99,294.70648866]
[1745162125672,0.063,137.0,136.99,293.70648866]
[1745162125875,0.063,137.0,136.99,294.70648866]
[1745162128893,0.063,137.0,136.99,376.00648866]
[1745162129082,0.063,137.0,136.99,126.02648866]
[1745162129401,0.063,137.0,136.99,127.48538952]
[1745162129995,10.9398398,137.0,136.96,81.3]
[1745162130186,10.8768398,136.99,136.97,26.0]
[1745162130387,10.8768398,136.98,136.93,11.8768398]
[1745162130576,10.9398398,137.0,136.94,18.64964886]
[1745162130776,10.8768398,136.99,136.94,29.52648866]
[1745162131193,10.8768398,136.98,136.94,18.64964886]
[1745162131393,10.8768398,136.99,136.94,29.52648866]
[1745162131583,10.9398398,137.0,136.95,10.8768398]
[1745162131793,0.063,137.0,136.96,10.8768398]
[1745162132095,10.9398398,137.0,136.96,18.64964886]
[1745162132299,10.9398398,137.0,136.96,29.52648866]
[1745162132300,0.063,137.0,136.96,29.52648866]
[1745162132598,0.063,137.0,136.97,10.8768398]
[1745162132776,0.063,137.0,136.96,10.8768398]
[1745162135201,0.063,137.0,136.97,264.16]
[1745162136500,0.063,137.0,136.97,275.0368398]
[1745162138000,0.063,137.0,136.98,14.2]
[1745162139207,0.063,137.0,136.98,25.0768398]
[1745162140806,0.063,137.0,136.98,14.2]
[1745162142708,0.063,137.0,136.99,249.98]
[1745162144102,10.9398398,137.0,136.99,249.98]
[1745162145501,0.063,137.0,136.99,249.98]
[1745162151723,0.063,137.0,136.99,260.8568398]
[1745162152103,0.063,137.0,136.99,279.50648866]
[1745162158417,0.063,137.0,136.99,268.62964886]
[1745162159333,0.063,137.0,136.99,249.98]
[1745162159540,10.9398398,137.0,136.99,249.98]
[1745162159722,0.063,137.0,136.99,249.98]
[1745162165763,0.063,137.0,136.99,260.8568398]
[1745162166127,0.063,137.0,136.99,249.98]
[1745162175344,10.9398398,137.0,136.99,249.98]
[1745162175526,0.063,137.0,136.99,249.98]
[1745162179251,0.063,137.0,136.99,264.18]
[1745162183151,10.9398398,137.0,136.99,264.18]
[1745162183333,0.063,137.0,136.99,264.18]
[1745162185955,12.5529398,137.0,136.99,264.18]
[1745162193763,19.1013398,137.0,136.99,264.18]
[1745162194140,1.6761,137.0,136.99,264.18]
[1745162194454,10.9398398,137.0,136.99,264.18]
[1745162197354,0.063,137.0,136.99,264.18]
[1745162197570,10.9398398,137.0,136.99,264.18]
[1745162202357,10.9398398,137.0,136.99,14.2]
[1745162202574,10.9398398,137.0,136.97,250.06]
[1745162202755,12.5010398,136.98,136.93,0.03]
[1745162202948,10.8768398,136.94,136.93,0.03]
[1745162203146,10.8768398,136.95,136.93,0.03]
[1745162205258,1.6242,136.98,136.94,264.28]
[1745162205456,10.8768398,136.95,136.94,264.28]
[1745162210447,36.8768398,136.95,136.94,264.28]
[1745162214669,18.64964886,136.94,136.9,0.03]
[1745162214996,26.0,136.92,136.91,14.2]
[1745162215990,36.8768398,136.92,136.91,14.2]
[1745162216158,36.8768398,136.92,136.9,250.15]
[1745162216354,26.0,136.92,136.91,14.2]
[1745162216557,26.0,136.92,136.88,0.03]
[1745162216785,26.0,136.9,136.88,0.03]
[1745162217682,10.8768398,136.89,136.88,0.03]
[1745162225087,26.0,136.9,136.88,0.03]
[1745162225385,18.64964886,136.95,136.88,264.45]
[1745162225565,82.4,136.94,136.88,264.45]
[1745162225883,26.0,136.93,136.88,264.45]
[1745162226082,10.8768398,136.9,136.88,264.45]
[1745162227085,36.8768398,136.9,136.88,264.45]
[1745162227983,26.0,136.9,136.88,264.45]
[1745162228489,26.0,136.91,136.88,275.3268398]
[1745162229178,26.0,136.91,136.88,264.45]
[1745162229679,26.0,136.91,136.88,275.3268398]
[1745162229993,26.0,136.93,136.89,10.8768398]
[1745162230569,36.8768398,136.93,136.88,275.3268398]
[1745162231587,10.8768398,136.92,136.88,264.45]
[1745162232578,10.8768398,136.9,136.88,264.45]
[1745162233184,82.4,136.92,136.88,264.45]
[1745162233593,10.8768398,136.91,136.88,264.45]
[1745162234090,93.2768398,136.92,136.88,264.45]
[1745162234791,0.063,136.97,136.88,264.45]
[1745162234792,108.4,136.95,136.89,10.8768398]
[1745162234986,119.2768398,136.95,136.9,10.8768398]
[1745162236085,82.463,136.97,136.91,12.4797398]
[1745162236279,10.9398398,136.97,136.92,10.8768398]
[1745162236479,10.8768398,136.96,136.93,14.4]
[1745162238091,10.8768398,136.95,136.93,14.4]
[1745162238299,10.8768398,136.94,136.93,14.4]
[1745162240105,10.8768398,136.94,136.93,264.58]
[1745162245102,26.0,136.94,136.93,264.58]
[1745162245284,36.8768398,136.94,136.93,264.58]
[1745162246891,10.8768398,136.94,136.93,264.58]
[1745162255708,93.2768398,136.95,136.93,264.58]
[1745162274730,93.2768398,136.95,136.94,14.34]
[1745162279625,93.2768398,136.95,136.94,264.48]
[1745162291830,82.4,136.95,136.94,264.48]
[1745162292240,0.063,136.97,136.94,275.3568398]
[1745162292717,0.063,136.97,136.95,10.8768398]
[1745162293148,0.063,136.97,136.94,275.3568398]
[1745162295441,10.9398398,136.97,136.94,264.48]
[1745162296829,10.8768398,136.96,136.94,264.48]
[1745162300531,10.8768398,136.95,136.94,264.48]
[1745162301838,10.8768398,136.96,136.94,264.48]
[1745162302954,0.063,136.97,136.94,264.48]
[1745162303252,10.9398398,136.97,136.94,264.48]
[1745162304756,10.8768398,136.96,136.94,264.48]
[1745162309353,119.3398398,136.97,136.94,264.48]
[1745162310450,10.8768398,136.96,136.94,264.48]
[1745162311658,93.3398398,136.97,136.94,264.48]
[1745162314650,93.3398398,136.97,136.95,14.24]
[1745162315366,10.8768398,136.96,136.95,14.24]
[1745162315750,54.384199,136.96,136.95,14.24]
[1745162315972,10.8768398,136.96,136.95,14.24]
[1745162316179,54.384199,136.96,136.95,14.24]
[1745162318490,10.8768398,136.96,136.95,14.24]
[1745162320588,10.3768398,136.96,136.95,14.24]
[1745162323599,53.884199,136.96,136.95,14.24]
[1745162323890,79.884199,136.96,136.95,14.24]
[1745162324197,104.55674786,136.96,136.95,14.2]
[1745162324403,26.0,136.93,136.88,0.03]
[1745162324598,10.8768398,136.89,136.88,0.03]
[1745162325299,10.8768398,136.89,136.88,264.37]
[1745162340394,10.8768398,136.89,136.86,0.03]
[1745162340395,26.0,136.87,136.86,0.03]
[1745162340573,18.64964886,136.86,136.84,0.03]
[1745162340897,10.8768398,136.85,136.84,0.03]
[1745162341797,18.64964886,136.84,136.82,0.03]
[1745162342003,10.8768398,136.83,136.82,0.03]
[1745162342182,36.8768398,136.83,136.76,0.03]
[1745162342505,10.8768398,136.79,136.76,0.03]
[1745162344302,83.9704,136.78,136.76,0.03]
[1745162344495,10.8768398,136.77,136.74,0.03]
[1745162344803,10.8768398,136.75,136.74,0.03]
[1745162345403,10.8768398,136.75,136.74,264.51]
[1745162349490,82.4,136.76,136.74,264.51]
[1745162349898,10.8768398,136.77,136.74,264.51]
[1745162350207,93.2768398,136.79,136.74,275.3868398]
[1745162351007,10.8768398,136.78,136.74,264.51]
[1745162351202,93.2768398,136.79,136.74,275.3868398]
[1745162351401,10.8768398,136.78,136.74,264.51]
[1745162353008,10.8768398,136.77,136.74,264.51]
[1745162353323,82.4,136.79,136.74,275.3868398]
[1745162353618,82.4,136.85,136.77,12.4591398]
[1745162353798,51.1508592,136.88,136.77,12.4591398]
[1745162353799,82.4,136.84,136.79,10.8768398]
[1745162353992,82.4,136.84,136.81,10.8768398]
[1745162354196,93.2768398,136.87,136.82,10.8768398]
[1745162354408,82.4,136.86,136.82,10.8768398]
[1745162354599,93.2768398,136.86,136.81,10.8768398]
[1745162355218,10.8768398,136.85,136.8,25.1768398]
[1745162355395,17.05837584,136.85,136.8,31.35837584]
[1745162355996,82.4,136.86,136.81,17.05837584]
[1745162356197,17.05837584,136.85,136.81,17.05837584]
[1745162356391,82.4,136.86,136.81,17.05837584]
[1745162356702,82.4,136.86,136.8,14.3]
[1745162356897,82.4,136.86,136.82,17.05837584]
[1745162357109,99.45837584,136.86,136.81,17.05837584]
[1745162357623,26.0,136.88,136.83,17.05837584]
[1745162357624,17.05837584,136.87,136.83,17.05837584]
[1745162357827,17.05837584,136.87,136.81,18.64964886]
[1745162357997,17.05837584,136.87,136.83,17.05837584]
[1745162358713,17.05837584,136.87,136.82,17.05837584]
[1745162359024,17.05837584,136.85,136.8,14.3]
[1745162359199,17.05837584,136.84,136.8,14.3]
[1745162360002,17.05837584,136.85,136.8,31.35837584]
[1745162360509,17.05837584,136.84,136.8,14.3]
[1745162360921,17.05837584,136.83,136.8,14.3]
[1745162361429,17.05837584,136.81,136.8,14.3]
[1745162361629,26.0,136.87,136.8,14.3]
[1745162361630,17.05837584,136.82,136.8,14.3]
[1745162363329,17.05837584,136.81,136.8,14.3]
[1745162363809,17.05837584,136.82,136.8,14.3]
[1745162365421,17.05837584,136.82,136.81,250.36]
[1745162366430,17.05837584,136.84,136.81,250.36]
[1745162366613,17.05837584,136.85,136.81,250.36]
[1745162366811,99.45837584,136.85,136.81,250.36]
[1745162371438,17.05837584,136.84,136.81,250.36]
[1745162375340,10.91901669,136.84,136.81,250.36]
[1745162376718,93.31901669,136.85,136.81,250.36]
[1745162376915,82.4,136.85,136.81,250.36]
[1745162377227,82.4,136.85,136.81,261.27901669]
[1745162377844,93.31901669,136.88,136.83,10.91901669]
[1745162378025,82.4,136.88,136.84,10.91901669]
[1745162378226,10.91901669,136.89,136.85,14.3]
[1745162378441,10.91901669,136.88,136.85,14.3]
[1745162378739,10.91901669,136.89,136.85,14.3]
[1745162379341,82.4,136.9,136.85,14.3]
[1745162379529,17.04958738,136.89,136.85,14.3]
[1745162379919,17.04958738,136.88,136.85,14.3]
[1745162380550,17.04958738,136.87,136.85,14.3]
[1745162380841,17.04958738,136.86,136.85,14.3]
[1745162382149,17.04958738,136.86,136.85,264.62]
[1745162385755,41.79553624,136.86,136.85,264.62]
[1745162386425,43.37363624,136.86,136.85,14.32]
[1745162386621,43.37363624,136.86,136.82,250.32]
[1745162386843,17.04958738,136.83,136.82,250.32]
[1745162387042,17.04958738,136.83,136.76,1.5457]
[1745162387263,17.04958738,136.79,136.76,1.5457]
[1745162388537,17.04958738,136.8,136.76,1.5457]
[1745162390724,17.04958738,136.81,136.76,18.59528738]
[1745162390935,17.04958738,136.82,136.77,17.04958738]
[1745162391139,99.44958738,136.82,136.77,17.04958738]
[1745162391637,17.04958738,136.81,136.76,18.59528738]
[1745162392964,17.04958738,136.81,136.76,1.5457]
[1745162393263,82.4,136.82,136.76,18.59528738]
[1745162393464,17.04958738,136.81,136.76,18.59528738]
[1745162394173,17.04958738,136.8,136.76,1.5457]
[1745162394354,17.04958738,136.77,136.75,0.03]
[1745162395243,17.04958738,136.78,136.76,264.68]
[1745162395442,17.04958738,136.77,136.76,264.68]
[1745162398438,99.44958738,136.77,136.76,264.68]
[1745162401567,17.04958738,136.77,136.76,264.68]
[1745162407254,35.69923624,136.77,136.76,264.68]
[1745162408470,17.04958738,136.77,136.76,264.68]
[1745162409360,10.93654912,136.77,136.76,264.68]
[1745162415479,8.1607,136.81,136.76,264.68]
[1745162415778,10.93654912,136.77,136.76,264.68]
[1745162416356,10.93654912,136.78,136.76,264.68]
[1745162416583,26.0,136.82,136.76,264.68]
[1745162416759,10.93654912,136.82,136.77,10.93654912]
[1745162416953,10.99954912,136.83,136.78,10.93654912]
[1745162417153,10.93654912,136.82,136.77,18.93844912]
[1745162417976,10.93654912,136.8,136.77,8.0019]
[1745162419271,17.07031264,136.8,136.77,8.0019]
[1745162419471,17.07031264,136.81,136.77,8.0019]
[1745162421083,17.07031264,136.8,136.77,8.0019]
[1745162421576,17.07031264,136.8,136.77,1.6016]
[1745162421779,17.07031264,136.78,136.76,264.68]
[1745162422983,17.07031264,136.77,136.76,264.68]
[1745162423368,17.07031264,136.79,136.76,264.68]
[1745162423871,17.07031264,136.78,136.76,264.68]
[1745162424700,17.07031264,136.77,136.76,264.68]
[1745162426973,9.988472,136.78,136.76,264.68]
[1745162428375,27.05878464,136.78,136.76,264.68]
[1745162428585,9.988472,136.78,136.76,264.68]
[1745162428784,27.05878464,136.78,136.76,264.68]
[1745162428995,9.988472,136.78,136.76,264.68]
[1745162429571,9.988472,136.78,136.76,281.75031264]
[1745162429878,9.988472,136.78,136.76,264.68]
[1745162433391,9.988472,136.78,136.76,281.75031264]
[1745162435190,9.988472,136.78,136.77,35.7199615]
[1745162443301,9.988472,136.78,136.77,29.57037856]
[1745162452913,9.988472,136.82,136.78,18.64964886]
[1745162453228,9.988472,136.82,136.78,29.57037856]
[1745162453392,9.988472,136.82,136.78,18.64964886]
[1745162453596,9.988472,136.82,136.78,29.57037856]
[1745162454228,9.988472,136.82,136.78,18.64964886]
[1745162457523,9.988472,136.82,136.78,29.57037856]
[1745162457819,9.988472,136.82,136.79,14.38]
[1745162460323,10.9207297,136.81,136.79,14.38]
[1745162462625,10.9207297,136.81,136.8,250.38]
[1745162463219,20.9092017,136.82,136.8,250.38]
[1745162467432,20.9092017,136.82,136.81,14.38]
[1745162471719,103.3092017,136.82,136.81,14.38]
[1745162473134,92.388472,136.82,136.81,14.38]
[1745162473933,103.3092017,136.82,136.81,14.38]
[1745162475318,92.388472,136.82,136.81,14.38]
[1745162478341,103.3092017,136.82,136.81,14.38]
[1745162478838,103.3092017,136.82,136.81,264.76]
[1745162479642,92.388472,136.82,136.81,264.76]
[1745162481731,82.4,136.82,136.81,264.76]
[1745162483447,0.063,136.83,136.81,264.76]
[1745162485628,10.9837297,136.83,136.81,264.76]
[1745162486954,10.9207297,136.82,136.81,264.76]
[1745162488749,62.7607485,136.82,136.75,0.03]
[1745162488932,10.9207297,136.77,136.76,14.28]
[1745162491655,10.9207297,136.79,136.76,14.28]
[1745162492355,10.9207297,136.78,136.76,14.28]
[1745162493954,10.9207297,136.79,136.76,14.28]
[1745162497058,10.9207297,136.78,136.76,14.28]
[1745162500660,10.9207297,136.77,136.76,14.28]
[1745162514373,26.0,136.81,136.76,14.28]
[1745162514568,10.9207297,136.78,136.76,14.28]
[1745162515671,26.0,136.81,136.76,14.28]
[1745162515847,10.9207297,136.78,136.76,14.28]
[1745162516970,10.9207297,136.77,136.76,14.28]
[1745162522573,12.5467297,136.77,136.76,14.28]
[1745162524070,82.37,136.74,136.7,0.03]
[1745162524375,26.0,136.72,136.71,14.34]
[1745162525479,101.01964886,136.71,136.7,0.03]
[1745162525685,29.57037856,136.71,136.7,14.34]
[1745162525983,29.57037856,136.71,136.69,3.0]
[1745162526170,26.0,136.67,136.58,1.6544]
[1745162526372,10.9207297,136.63,136.62,0.03]
[1745162526669,10.9207297,136.64,136.62,0.03]
[1745162527065,10.9207297,136.63,136.62,0.03]
[1745162529184,93.3207297,136.65,136.62,0.03]
[1745162529388,10.9207297,136.66,136.62,0.03]
[1745162529593,10.9207297,136.67,136.62,10.9507297]
[1745162530281,10.9207297,136.67,136.62,0.03]
[1745162530468,10.9207297,136.66,136.62,0.03]
[1745162531166,10.9207297,136.65,136.62,0.03]
[1745162532303,10.9207297,136.64,136.62,0.03]
[1745162534088,10.9207297,136.63,136.62,0.03]
[1745162535303,10.9207297,136.63,136.62,14.55]
[1745162539004,26.0,136.6,136.56,0.03]
[1745162539208,10.9207297,136.57,136.56,0.03]
[1745162541110,10.9207297,136.58,136.56,0.03]
[1745162541488,10.9207297,136.59,136.56,0.03]
[1745162541808,26.0,136.62,136.56,0.03]
[1745162542014,10.9207297,136.6,136.56,0.03]
[1745162542183,49.9885188,136.64,136.56,0.03]
[1745162542512,82.4,136.59,136.56,0.03]
[1745162543493,10.9207297,136.61,136.56,36.9507297]
[1745162543706,93.3207297,136.62,136.57,10.9207297]
[1745162543913,93.3207297,136.62,136.57,17.1284297]
[1745162544601,93.3207297,136.62,136.57,6.2077]
[1745162544796,93.3207297,136.62,136.57,17.1284297]
[1745162545007,93.3207297,136.62,136.58,10.9207297]
[1745162545200,93.3207297,136.62,136.59,265.24]
[1745162545397,10.9207297,136.6,136.59,250.72]
[1745162545598,10.9207297,136.6,136.59,265.24]
[1745162546896,82.4,136.61,136.59,276.1607297]
[1745162547109,82.4,136.61,136.59,277.8120297]
[1745162547330,82.4,136.61,136.59,284.00194281]
[1745162547526,82.4,136.61,136.59,266.8913]
[1745162548424,82.4,136.61,136.59,284.00194281]
[1745162550927,82.4,136.66,136.59,284.00194281]
[1745162551116,17.11064281,136.64,136.59,284.00194281]
[1745162552200,82.4,136.68,136.63,17.11064281]
[1745162552504,82.4,136.67,136.64,14.52]
[1745162552714,99.51064281,136.67,136.64,14.52]
[1745162553431,17.11064281,136.66,136.64,14.52]
[1745162553930,17.11064281,136.65,136.64,14.52]
[1745162555701,82.4,136.67,136.64,14.52]
[1745162555929,99.51064281,136.67,136.64,14.52]
[1745162556099,17.11064281,136.67,136.64,14.52]
[1745162557540,17.11064281,136.66,136.64,14.52]
[1745162559735,17.11064281,136.65,136.64,14.52]
[1745162563136,17.11064281,136.65,136.64,265.2]
[1745162563440,82.4,136.68,136.64,265.2]
[1745162563606,17.11064281,136.65,136.64,265.2]
[1745162564734,82.4,136.67,136.64,265.2]
[1745162564934,17.11064281,136.65,136.64,265.2]
[1745162567440,10.94969812,136.65,136.64,265.2]
[1745162574548,93.34969812,136.65,136.64,265.2]
[1745162588767,10.94969812,136.65,136.64,265.2]
[1745162589068,34.0184,136.7,136.64,265.2]
[1745162589252,10.94969812,136.66,136.64,265.2]
[1745162589449,10.94969812,136.65,136.64,265.2]
[1745162606655,56.2966906,136.65,136.64,265.2]
[1745162607152,62.8735906,136.65,136.64,14.48]
[1745162607356,26.0,136.64,136.56,0.03]
[1745162607667,10.94969812,136.58,136.56,0.03]
[1745162607874,10.94969812,136.59,136.56,0.03]
[1745162609064,10.94969812,136.58,136.56,0.03]
[1745162610083,10.94969812,136.59,136.56,0.03]
[1745162615076,10.94969812,136.58,136.56,0.03]
[1745162615286,10.94969812,136.58,136.57,265.22]
[1745162616364,10.94969812,136.59,136.57,265.22]
[1745162625781,10.94969812,136.61,136.57,265.22]
[1745162627417,10.94969812,136.6,136.57,265.22]
[1745162630304,10.94969812,136.59,136.57,265.22]
[1745162630504,10.94969812,136.58,136.57,250.72]
[1745162630688,10.94969812,136.58,136.57,265.1]
[1745162660446,36.94969812,136.58,136.57,265.1]
[1745162670454,36.94969812,136.58,136.57,14.32]
[1745162672930,10.94969812,136.58,136.57,14.32]
[1745162675157,10.94969812,136.58,136.57,265.16]
[1745162675460,10.94969812,136.59,136.57,265.16]
[1745162679157,10.94969812,136.6,136.57,265.16]
[1745162679340,10.94969812,136.61,136.57,265.16]
[1745162679535,10.94969812,136.61,136.57,276.10969812]
[1745162682161,10.94969812,136.61,136.57,265.16]
[1745162686645,10.94969812,136.61,136.57,276.10969812]
[1745162687244,93.34969812,136.62,136.57,276.10969812]
[1745162688461,93.34969812,136.62,136.58,10.94969812]
[1745162688666,82.4,136.61,136.58,10.94969812]
[1745162688859,10.94969812,136.62,136.58,10.94969812]
[1745162689053,10.94969812,136.64,136.59,10.94969812]
[1745162689258,82.4,136.63,136.59,10.94969812]
[1745162689757,93.34969812,136.63,136.59,10.94969812]
[1745162692373,82.4,136.63,136.59,10.94969812]
[1745162692576,93.34969812,136.63,136.58,29.59934698]
[1745162693474,10.94969812,136.62,136.58,10.94969812]
[1745162696074,93.34969812,136.63,136.58,10.94969812]
[1745162696276,82.4,136.63,136.58,10.94969812]
[1745162696483,93.34969812,136.63,136.58,10.94969812]
[1745162696972,82.4,136.63,136.58,10.94969812]
[1745162697162,93.34969812,136.63,136.58,10.94969812]
[1745162697664,10.94969812,136.61,136.57,302.10969812]
[1745162702180,10.94969812,136.61,136.57,291.16]
[1745162702955,10.94969812,136.61,136.57,302.10969812]
[1745162707592,93.34969812,136.62,136.57,302.10969812]
[1745162707985,93.34969812,136.62,136.58,265.02]
[1745162709393,82.4,136.61,136.58,265.02]
[1745162712399,82.4,136.61,136.56,20.27494886]
[1745162712400,8.0518,136.58,136.56,0.03]
[1745162712695,26.0,136.54,136.51,2.4739073]
[1745162712872,26.0,136.54,136.52,14.28]
[1745162714167,10.94969812,136.53,136.52,14.28]
[1745162720670,38.45464454,136.53,136.43,0.03]
[1745162720979,36.94969812,136.51,136.43,0.03]
[1745162721198,10.94969812,136.45,136.43,0.03]
[1745162722798,26.0,136.49,136.43,0.03]
[1745162723011,10.94969812,136.47,136.43,0.03]
[1745162724808,6.6467,136.52,136.43,0.03]
[1745162724982,10.94969812,136.47,136.43,0.03]
[1745162725183,10.94969812,136.47,136.44,265.32]
[1745162725396,10.94969812,136.46,136.44,265.32]
[1745162725590,82.4,136.48,136.44,265.32]
[1745162725900,10.94969812,136.45,136.44,265.32]
[1745162726100,10.94969812,136.46,136.44,265.32]
[1745162727097,82.4,136.48,136.44,265.32]
[1745162727301,10.94969812,136.46,136.44,265.32]
[1745162728004,10.94969812,136.47,136.44,265.32]
[1745162728396,82.4,136.48,136.44,277.86449812]
[1745162728574,82.4,136.48,136.45,10.94969812]
[1745162729091,82.4,136.48,136.44,277.86449812]
[1745162732099,82.4,136.48,136.46,10.94969812]
[1745162732398,93.34969812,136.52,136.47,10.94969812]
[1745162732578,82.4,136.51,136.47,10.94969812]
[1745162732781,82.4,136.54,136.5,10.94969812]
[1745162732977,82.4,136.54,136.51,14.44]
[1745162733183,82.4,136.54,136.51,25.38969812]
[1745162733405,82.4,136.54,136.51,14.44]
[1745162735201,93.34969812,136.54,136.51,14.44]
[1745162735500,10.94969812,136.53,136.51,14.44]
[1745162735704,10.94969812,136.52,136.51,14.44]
[1745162735912,10.94969812,136.53,136.51,14.44]
[1745162736084,10.94969812,136.52,136.51,14.44]
[1745162736895,10.94969812,136.53,136.51,14.44]
[1745162737308,10.94969812,136.53,136.52,250.94]
[1745162741105,82.4,136.56,136.52,261.88969812]
[1745162741296,82.4,136.56,136.53,10.94969812]
[1745162741506,93.34969812,136.56,136.52,250.94]
[1745162741995,82.4,136.56,136.52,250.94]
[1745162742201,10.94969812,136.53,136.52,250.94]
[1745162745295,17.14272241,136.53,136.52,250.94]
[1745162750328,44.80402241,136.56,136.52,250.94]
[1745162750518,17.14272241,136.53,136.52,250.94]
[1745162765228,17.14272241,136.53,136.52,265.36]
[1745162765437,10.97080007,136.53,136.52,265.36]
[1745162779428,82.4,136.55,136.52,265.36]
[1745162780259,93.37080007,136.55,136.52,265.36]
[1745162782444,10.97080007,136.54,136.52,265.36]
[1745162782751,93.37080007,136.54,136.52,265.36]
[1745162788456,82.4,136.53,136.52,265.36]
[1745162791765,82.4,136.53,136.52,276.33080007]
[1745162792057,93.37080007,136.57,136.52,276.33080007]
[1745162792242,82.4,136.56,136.52,276.33080007]
[1745162792741,93.37080007,136.55,136.52,265.36]
[1745162795145,82.4,136.55,136.52,265.36]
[1745162795971,82.4,136.55,136.52,276.33080007]
[1745162796147,82.4,136.55,136.54,10.97080007]
[1745162796355,26.0,136.57,136.54,10.97080007]
[1745162797069,26.0,136.57,136.53,10.97080007]
[1745162800087,26.0,136.57,136.54,10.97080007]
[1745162800255,93.37080007,136.58,136.54,10.97080007]
[1745162801580,93.37080007,136.58,136.52,265.36]
[1745162801581,82.4,136.58,136.55,10.97080007]
[1745162802977,82.4,136.58,136.56,10.97080007]
[1745162803275,82.4,136.58,136.57,14.3]
[1745162805873,82.4,136.58,136.57,265.14]
[1745162807866,93.37080007,136.58,136.57,265.14]
[1745162810575,26.0,136.55,136.49,250.82]
[1745162810767,10.97080007,136.51,136.5,14.28]
[1745162812372,10.97080007,136.53,136.5,14.28]
[1745162812567,10.97080007,136.54,136.5,14.28]
[1745162812765,10.97080007,136.55,136.5,25.25080007]
[1745162814380,82.4,136.57,136.51,10.97080007]
[1745162814588,0.063,136.59,136.53,10.97080007]
[1745162814760,0.063,136.59,136.54,10.97080007]
[1745162814958,0.063,136.59,136.55,14.28]
[1745162815159,10.97080007,136.58,136.55,14.28]
[1745162815460,10.97080007,136.57,136.55,14.28]
[1745162817068,10.97080007,136.56,136.55,14.28]
[1745162820681,54.85400035,136.56,136.55,14.28]
[1745162822578,54.85400035,136.56,136.46,10.97080007]
[1745162822767,10.97080007,136.51,136.46,10.97080007]
[1745162823393,10.97080007,136.51,136.45,18.64964886]
[1745162823586,10.97080007,136.51,136.46,10.97080007]
[1745162824288,10.97080007,136.5,136.45,29.62044893]
[1745162824685,82.4,136.5,136.46,10.97080007]
[1745162825193,82.4,136.5,136.47,265.16]
[1745162826887,93.37080007,136.5,136.47,265.16]
[1745162834504,82.4,136.5,136.47,265.16]
[1745162835613,82.4,136.53,136.49,10.97080007]
[1745162837004,93.37080007,136.53,136.48,18.64964886]
[1745162837305,93.37080007,136.53,136.48,29.62044893]
[1745162838417,10.97080007,136.51,136.47,265.16]
[1745162838913,10.97080007,136.52,136.47,276.13080007]
[1745162839215,82.4,136.53,136.47,265.16]
[1745162839216,10.97080007,136.51,136.47,265.16]
[1745162839598,93.37080007,136.5,136.47,265.16]
[1745162843207,10.97080007,136.49,136.47,265.16]
[1745162844111,82.4,136.48,136.47,265.16]